fUSD/lending_fUSD_20241223
["ID","MTS","AMOUNT","RATE_DAILY","PERIOD"]
[346398764,1734940248950,-500.0,0.00019452,2]
[346398766,1734940248959,-500.0,0.00019452,2]
[346398768,1734940248970,-506.08,0.00019452,2]
[346398770,1734940248979,-1041.44,0.00019452,2]
[346398772,1734940248990,-500.0,0.00019452,2]
[346398774,1734940249000,-500.0,0.00019452,2]
[346398776,1734940249010,-500.0,0.00019452,2]
[346398778,1734940249021,-500.0,0.00019452,2]
[346398780,1734940249031,-500.0,0.00019452,2]
[346398782,1734940249041,-500.0,0.00019452,2]
[346398784,1734940249051,-500.0,0.00019452,2]
[346398786,1734940249061,-500.0,0.00019452,2]
[346398788,1734940249070,-500.0,0.00019452,2]
[346398790,1734940249080,-500.0,0.00019452,2]
[346398792,1734940249090,-507.9,0.00019452,2]
[346398794,1734940249100,-500.0,0.00019452,2]
[346398796,1734940249109,-500.0,0.00019452,2]
[346398817,1734940249119,-500.0,0.00019452,2]
[346398820,1734940249329,-500.0,0.00019452,2]
[346398822,1734940249342,-500.0,0.00019452,2]
[346398824,1734940249356,-500.0,0.00019452,2]
[346398826,1734940249366,-500.0,0.00019452,2]
[346398828,1734940249375,-500.0,0.00019452,2]
[346398830,1734940249387,-500.0,0.00019452,2]
[346398832,1734940249397,-500.0,0.00019452,2]
[346398834,1734940249407,-727.89,0.00019452,2]
[346398835,1734940249419,-500.0,0.00019452,2]
[346398837,1734940249429,-500.0,0.00019452,2]
[346398839,1734940249440,-500.0,0.00019452,2]
[346398841,1734940249449,-1853.57,0.00019452,2]
[346398843,1734940249459,-500.0,0.00019452,2]
[346398845,1734940249469,-500.0,0.00019452,2]
[346398847,1734940249479,-900.57,0.00019452,2]
[346398849,1734940249489,-17292.04,0.00019452,2]
[346398851,1734940249498,-487.16932803,0.00019452,2]
[346398853,1734940249508,-500.0,0.00019452,2]
[346398855,1734940249517,-500.0,0.00019452,2]
[346398857,1734940249529,-1077.2,0.00019452,2]
[346398859,1734940249540,-500.0,0.00019452,2]
[346398861,1734940249550,-970.31,0.00019452,2]
[346398863,1734940249559,-500.0,0.00019452,2]
[346398865,1734940249569,-500.0,0.00019452,2]
[346398867,1734940249579,-669.79,0.00019452,2]
[346398869,1734940249589,-1108.65,0.00019452,2]
[346398871,1734940249599,-736.88,0.00019452,2]
[346398873,1734940249608,-539.92126405,0.00019452,2]
[346398875,1734940249618,-500.0,0.00019452,2]
[346398876,1734940249631,-786.14,0.00019452,2]
[346398878,1734940249640,-500.0,0.00019452,2]
[346398880,1734940249649,-1699.95,0.00019452,2]
[346398882,1734940249659,-500.0,0.00019452,2]
[346398885,1734940249669,-500.0,0.00019452,2]
[346398886,1734940249678,-9367.55,0.00019452,2]
[346398888,1734940249687,-500.0,0.00019452,2]
[346398890,1734940249697,-500.0,0.00019452,2]
[346398892,1734940249707,-500.0,0.00019452,2]
[346398894,1734940249716,-500.0,0.00019452,2]
[346398896,1734940249725,-1104.51,0.00019452,2]
[346398898,1734940249735,-500.0,0.00019452,2]
[346398900,1734940249744,-1174.4,0.00019452,2]
[346398902,1734940249753,-500.0,0.00019452,2]
[346398904,1734940249762,-500.0,0.00019452,2]
[346398906,1734940249771,-945.65,0.00019452,2]
[346398908,1734940249780,-1820.36,0.00019452,2]
[346398910,1734940249790,-500.0,0.00019452,2]
[346398912,1734940249799,-1917.83,0.00019452,2]
[346398914,1734940249808,-1349.28,0.00019452,2]
[346398916,1734940249817,-500.0,0.00019452,2]
[346398918,1734940249827,-3977.3,0.00019452,2]
[346398920,1734940249836,-500.0,0.00019452,2]
[346398922,1734940249846,-500.0,0.00019452,2]
[346398924,1734940249855,-517.87745332,0.00019452,2]
[346398926,1734940249864,-500.0,0.00019452,2]
[346398928,1734940249873,-500.0,0.00019452,2]
[346398929,1734940249882,-500.0,0.00019452,2]
[346398931,1734940249891,-500.0,0.00019452,2]
[346398933,1734940249900,-500.0,0.00019452,2]
[346398935,1734940249910,-1221.1,0.00019452,2]
[346398937,1734940249919,-500.0,0.00019452,2]
[346398939,1734940249928,-500.0,0.00019452,2]
[346398941,1734940249937,-500.0,0.00019452,2]
[346398943,1734940249946,-500.0,0.00019452,2]
[346398945,1734940249955,-500.0,0.00019452,2]
[346398947,1734940249964,-500.0,0.00019452,2]
[346398949,1734940249973,-500.0,0.00019452,2]
[346398951,1734940249983,-849.57,0.00019452,2]
[346398953,1734940249992,-500.0,0.00019452,2]
[346398955,1734940250001,-500.0,0.00019452,2]
[346398957,1734940250010,-500.0,0.00019452,2]
[346398958,1734940250018,-500.0,0.00019452,2]
[346398960,1734940250027,-500.0,0.00019452,2]
[346398962,1734940250037,-524.20884261,0.00019452,2]
[346398964,1734940250046,-623.6402871,0.00019452,2]
[346398966,1734940250055,-1298.38,0.00019452,2]
[346398968,1734940250064,-562.12660999,0.00019452,2]
[346398970,1734940250073,-500.0,0.00019452,2]
[346398972,1734940250081,-509.19040084,0.00019452,2]
[346398974,1734940250090,-4147.11,0.00019452,2]
[346398976,1734940250099,-500.0,0.00019452,2]
[346398978,1734940250108,-796.41,0.00019452,2]
[346398979,1734940250117,-506.41937804,0.00019452,2]
[346398980,1734940250126,-1300.2,0.00019452,2]
[346398981,1734940250135,-507.17907921,0.00019452,2]
[346398982,1734940250145,-862.14,0.00019452,2]
[346398983,1734940250154,-500.0,0.00019452,2]
[346398984,1734940250163,-1051.07,0.00019452,2]
[346398985,1734940250172,-500.0,0.00019452,2]
[346398986,1734940250181,-911.18,0.00019452,2]
[346398987,1734940250191,-842.27,0.00019452,2]
[346398988,1734940250200,-683.41,0.00019452,2]
[346398989,1734940250209,-500.0,0.00019452,2]
[346398990,1734940250218,-322.01190953,0.00019452,2]
[346398991,1734940250227,-500.0,0.00019452,2]
[346398992,1734940250237,-500.0,0.00019452,2]
[346398993,1734940250245,-500.0,0.00019452,2]
[346398995,1734940250255,-1931.51,0.00019452,2]
[346398997,1734940250264,-500.0,0.00019452,2]
[346398999,1734940250274,-500.0,0.00019452,2]
[346399001,1734940250284,-500.0,0.00019452,2]
[346399003,1734940250293,-247.07187818,0.00019452,2]
[346399005,1734940250302,-500.0,0.00019452,2]
[346399007,1734940250312,-500.0,0.00019452,2]
[346399009,1734940250321,-500.0,0.00019452,2]
[346399011,1734940250330,-521.83,0.00019452,2]
[346399013,1734940250340,-500.0,0.00019452,2]
[346399015,1734940250350,-1841.22,0.00019452,2]
[346399017,1734940250359,-898.31,0.00019452,2]
[346399019,1734940250368,-2051.97,0.00019452,2]
[346399021,1734940250377,-500.0,0.00019452,2]
[346399023,1734940250386,-640.87,0.00019452,2]
[346399025,1734940250395,-500.0,0.00019452,2]
[346399027,1734940250405,-727.99,0.00019452,2]
[346399029,1734940250414,-500.0,0.00019452,2]
[346399031,1734940250423,-1426.15,0.00019452,2]
[346399033,1734940250433,-1358.09,0.00019452,2]
[346399035,1734940250442,-500.0,0.00019452,2]
[346399037,1734940250452,-500.0,0.00019452,2]
[346399039,1734940250461,-2805.36,0.00019452,2]
[346399041,1734940250470,-500.0,0.00019452,2]
[346399043,1734940250479,-500.0,0.00019452,2]
[346399045,1734940250488,-1309.66,0.00019452,2]
[346399047,1734940250497,-500.0,0.00019452,2]
[346399049,1734940250507,-500.0,0.00019452,2]
[346399051,1734940250517,-1296.75,0.00019452,2]
[346399053,1734940250526,-9921.71,0.00019452,2]
[346399055,1734940250535,-995.79,0.00019452,2]
[346399057,1734940250544,-500.0,0.00019452,2]
[346399059,1734940250553,-507.78635365,0.00019452,2]
[346399061,1734940250562,-1106.64,0.00019452,2]
[346399063,1734940250572,-991.88,0.00019452,2]
[346399064,1734940250581,-210.08332564,0.00019452,2]
[346399066,1734940250590,-500.0,0.00019452,2]
[346399068,1734940250600,-1025.59,0.00019452,2]
[346399070,1734940250609,-2224.42,0.00019452,2]
[346399072,1734940250618,-2036.24,0.00019452,2]
[346399074,1734940250628,-12977.05,0.00019452,2]
[346399077,1734940250637,-500.0,0.00019452,2]
[346399079,1734940250646,-806.27,0.00019452,2]
[346399080,1734940250655,-500.0,0.00019452,2]
[346399082,1734940250664,-3510.63,0.00019452,2]
[346399084,1734940250674,-500.0,0.00019452,2]
[346399087,1734940250683,-3263.6,0.00019452,2]
[346399089,1734940250693,-480.12758955,0.00019452,2]
[346399091,1734940250702,-1580.43,0.00019452,2]
[346399093,1734940250711,-1743.4,0.00019452,2]
[346399095,1734940250720,-500.0,0.00019452,2]
[346399097,1734940250730,-1143.14,0.00019452,2]
[346399099,1734940250739,-500.0,0.00019452,2]
[346399100,1734940250748,-500.0,0.00019452,2]
[346399103,1734940250757,-500.0,0.00019452,2]
[346399105,1734940250766,-1121.5,0.00019452,2]
[346399106,1734940250776,-1782.74,0.00019452,2]
[346399108,1734940250785,-500.0,0.00019452,2]
[346399110,1734940250795,-1155.38,0.00019452,2]
[346399113,1734940250804,-1193.96,0.00019452,2]
[346399115,1734940250814,-500.0,0.00019452,2]
[346399117,1734940250823,-500.0,0.00019452,2]
[346399119,1734940250831,-1562.41,0.00019452,2]
[346399120,1734940250841,-500.0,0.00019452,2]
[346399123,1734940250851,-2544.11,0.00019452,2]
[346399125,1734940250860,-500.0,0.00019452,2]
[346399126,1734940250870,-2306.46,0.00019452,2]
[346399128,1734940250879,-1634.45,0.00019452,2]
[346399130,1734940250888,-500.0,0.00019452,2]
[346399132,1734940250898,-768.11,0.00019452,2]
[346399134,1734940250907,-500.0,0.00019452,2]
[346399137,1734940250916,-336.44913282,0.00019452,2]
[346399138,1734940250925,-2860.24,0.00019452,2]
[346399140,1734940250935,-1225.55,0.00019452,2]
[346399142,1734940250944,-500.0,0.00019452,2]
[346399144,1734940250954,-500.0,0.00019452,2]
[346399146,1734940250963,-840.17,0.00019452,2]
[346399148,1734940250973,-159.51,0.00019452,2]
[346399151,1734940250983,-560.61,0.00019452,2]
[346399153,1734940250992,-500.0,0.00019452,2]
[346399154,1734940251002,-1623.85,0.00019452,2]
[346399157,1734940251012,-1630.88,0.00019452,2]
[346399159,1734940251023,-500.0,0.00019452,2]
[346399161,1734940251032,-222.85156275,0.00019452,2]
[346399163,1734940251041,-500.0,0.00019452,2]
[346399165,1734940251050,-742.64,0.00019452,2]
[346399167,1734940251059,-500.0,0.00019452,2]
[346399168,1734940251068,-500.0,0.00019452,2]
[346399170,1734940251077,-1784.46,0.00019452,2]
[346399172,1734940251087,-500.0,0.00019452,2]
[346399175,1734940251096,-500.0,0.00019452,2]
[346399177,1734940251105,-500.0,0.00019452,2]
[346399179,1734940251114,-803.32,0.00019452,2]
[346399181,1734940251124,-500.0,0.00019452,2]
[346399182,1734940251133,-4733.43,0.00019452,2]
[346399184,1734940251142,-500.0,0.00019452,2]
[346399186,1734940251151,-2715.78,0.00019452,2]
[346399188,1734940251160,-500.0,0.00019452,2]
[346399190,1734940251169,-9146.3,0.00019452,2]
[346399192,1734940251179,-2904.54,0.00019452,2]
[346399194,1734940251188,-3294.02,0.00019452,2]
[346399196,1734940251197,-3041.59,0.00019452,2]
[346399199,1734940251206,-500.0,0.00019452,2]
[346399201,1734940251215,-2019.79,0.00019452,2]
[346399202,1734940251224,-500.0,0.00019452,2]
[346399204,1734940251233,-500.0,0.00019452,2]
[346399207,1734940251243,-3861.43,0.00019452,2]
[346399209,1734940251252,-196.47174094,0.00019452,2]
[346399211,1734940251261,-1092.77,0.00019452,2]
[346399213,1734940251272,-1712.47,0.00019452,2]
[346399214,1734940251282,-500.0,0.00019452,2]
[346399216,1734940251291,-500.0,0.00019452,2]
[346399218,1734940251299,-1989.28,0.00019452,2]
[346399220,1734940251308,-500.0,0.00019452,2]
[346399222,1734940251318,-500.0,0.00019452,2]
[346399224,1734940251327,-28687.14,0.00019452,2]
[346399226,1734940251336,-500.0,0.00019452,2]
[346399228,1734940251350,-506.54748671,0.00019452,2]
[346399230,1734940251359,-1359.63,0.00019452,2]
[346399232,1734940251368,-3366.26,0.00019452,2]
[346399234,1734940251377,-666.27,0.00019452,2]
[346399236,1734940251386,-500.0,0.00019452,2]
[346399238,1734940251395,-6677.79,0.00019452,2]
[346399240,1734940251403,-7468.01,0.00019452,2]
[346399242,1734940251412,-604.98,0.00019452,2]
[346399244,1734940251422,-500.0,0.00019452,2]
[346399246,1734940251431,-1299.82,0.00019452,2]
[346399248,1734940251440,-2671.39,0.00019452,2]
[346399250,1734940251449,-4448.82,0.00019452,2]
[346399252,1734940251458,-4190.14,0.00019452,2]
[346399254,1734940251466,-2445.82,0.00019452,2]
[346399256,1734940251475,-500.0,0.00019452,2]
[346399258,1734940251485,-582.28,0.00019452,2]
[346399260,1734940251493,-500.0,0.00019452,2]
[346399262,1734940251503,-519.92,0.00019452,2]
[346399264,1734940251511,-507.5,0.00019452,2]
[346399266,1734940251520,-2016.79,0.00019452,2]
[346399268,1734940251529,-537.5,0.00019452,2]
[346399270,1734940251539,-2226.17,0.00019452,2]
[346399272,1734940251548,-2236.68,0.00019452,2]
[346399274,1734940251557,-1286.33,0.00019452,2]
[346399276,1734940251566,-4382.06,0.00019452,2]
[346399278,1734940251575,-500.0,0.00019452,2]
[346399280,1734940251584,-500.0,0.00019452,2]
[346399282,1734940251593,-576.62,0.00019452,2]
[346399284,1734940251602,-1920.18,0.00019452,2]
[346399286,1734940251611,-1085.87,0.00019452,2]
[346399288,1734940251620,-1210.25,0.00019452,2]
[346399290,1734940251629,-2910.72,0.00019452,2]
[346399292,1734940251638,-497.43612398,0.00019452,2]
[346399294,1734940251647,-500.0,0.00019452,2]
[346399296,1734940251655,-2010.98,0.00019452,2]
[346399297,1734940251665,-500.0,0.00019452,2]
[346399300,1734940251674,-1100.63,0.00019452,2]
[346399301,1734940251683,-500.0,0.00019452,2]
[346399303,1734940251692,-971.16,0.00019452,2]
[346399305,1734940251701,-500.0,0.00019452,2]
[346399307,1734940251710,-817.56,0.00019452,2]
[346399309,1734940251720,-8457.91,0.00019452,2]
[346399311,1734940251729,-500.0,0.00019452,2]
[346399313,1734940251738,-500.0,0.00019452,2]
[346399315,1734940251747,-500.0,0.00019452,2]
[346399317,1734940251756,-8288.01,0.00019452,2]
[346399319,1734940251766,-937.65,0.00019452,2]
[346399321,1734940251775,-500.0,0.00019452,2]
[346399323,1734940251784,-500.0,0.00019452,2]
[346399325,1734940251794,-500.0,0.00019452,2]
[346399327,1734940251803,-2968.07,0.00019452,2]
[346399329,1734940251812,-500.0,0.00019452,2]
[346399331,1734940251821,-1653.9,0.00019452,2]
[346399333,1734940251830,-500.0,0.00019452,2]
[346399335,1734940251838,-750.26,0.00019452,2]
[346399337,1734940251847,-1002.92,0.00019452,2]
[346399339,1734940251856,-936.4,0.00019452,2]
[346399341,1734940251865,-1032.55,0.00019452,2]
[346399343,1734940251874,-827.46,0.00019452,2]
[346399345,1734940251885,-1599.16,0.00019452,2]
[346399347,1734940251894,-500.0,0.00019452,2]
[346399349,1734940251903,-3807.57,0.00019452,2]
[346399351,1734940251912,-2835.86,0.00019452,2]
[346399353,1734940251921,-309.24733089,0.00019479,2]
[346399355,1734940251930,-150.0,0.00019479,2]
[346399357,1734940251939,-150.0,0.00019479,2]
[346399359,1734940251948,-150.0,0.00019479,2]
[346399361,1734940251957,-150.0,0.00019479,2]
[346399363,1734940251967,-150.0,0.00019479,2]
[346399365,1734940251976,-150.0,0.00019479,2]
[346399367,1734940251986,-150.0,0.00019479,2]
[346399369,1734940251995,-150.0,0.00019479,2]
[346399371,1734940252004,-150.0,0.00019479,2]
[346399373,1734940252014,-150.0,0.000195,4]
[346399375,1734940252023,-208.0,0.0001951,2]
[346399377,1734940252032,-309.24733089,0.00019512,2]
[346399379,1734940252042,-1000.0,0.00019534,2]
[346399381,1734940252053,-1000.0,0.00019534,2]
[346399383,1734940252062,-1000.0,0.00019534,2]
[346399385,1734940252071,-1000.0,0.00019534,2]
[346399387,1734940252080,-1000.0,0.00019534,2]
[346399389,1734940252090,-1000.0,0.00019534,2]
[346399391,1734940252099,-1000.0,0.00019534,2]
[346399393,1734940252108,-1000.0,0.00019534,2]
[346399395,1734940252118,-1060.41384629,0.00019534,2]
[346399397,1734940252127,-7398.342031,0.00019535,2]
[346399399,1734940252137,-8509.41724508,0.00019535,2]
[346399401,1734940252146,-1000.0,0.00019537,2]
[346399403,1734940252155,-309.24733089,0.00019546,2]
[346399405,1734940252164,-150.0,0.00019556,4]
[346399407,1734940252173,-150.43,0.00019556,2]
[346399409,1734940252182,-200.11,0.00019578,2]
[346399411,1734940252192,-309.24733089,0.00019579,2]
[346399413,1734940252201,-171.96652561,0.00019589,2]
[346399415,1734940252210,-150.0,0.00019599,2]
[346399417,1734940252219,-500.0,0.00019599,2]
[346399419,1734940252228,-500.0,0.00019599,2]
[346399421,1734940252238,-500.0,0.00019599,2]
[346399423,1734940252247,-500.0,0.00019599,2]
[346399425,1734940252256,-500.0,0.00019599,2]
[346399427,1734940252265,-500.0,0.00019599,2]
[346399429,1734940252276,-506.92,0.00019599,2]
[346399431,1734940252285,-2814.0,0.000196,2]
[346399433,1734940252294,-151.0,0.000196,2]
[346399435,1734940252302,-238.857697,0.000196,2]
[346399437,1734940252311,-151.0,0.000196,2]
[346399439,1734940252320,-159.211888,0.000196,2]
[346399441,1734940252330,-635.766619,0.000196,2]
[346399443,1734940252340,-635.766619,0.000196,2]
[346399445,1734940252350,-151.0,0.000196,2]
[346399447,1734940252360,-151.0,0.000196,2]
[346399449,1734940252369,-841.03525347,0.000196,2]
[346399451,1734940252379,-150.0,0.000196,4]
[346399453,1734940252388,-309.24733089,0.00019613,2]
[346399455,1734940252397,-2718.48,0.00019624,2]
[346399457,1734940252406,-192.05111782,0.00019626,2]
[346399459,1734940252415,-7398.342031,0.00019626,2]
[346399461,1734940252424,-8509.41724508,0.00019626,2]
[346399463,1734940252434,-309.24733089,0.00019646,2]
[346399482,1734940252598,-841.03525344,0.0001965,2]
[346399484,1734940252608,-16133.57462776,0.00019665,2]
[346399486,1734940252617,-150.0,0.00019667,4]
[346399488,1734940252627,-415.5,0.00019671,7]
[346399490,1734940252636,-162.3786861,0.00019673,2]
[346399492,1734940252645,-583.53894794,0.00019673,2]
[346399494,1734940252654,-260.06377458,0.00019673,2]
[346399496,1734940252663,-500.0,0.00019673,2]
[346399498,1734940252672,-500.0,0.00019673,2]
[346399500,1734940252683,-309.24733089,0.0001968,2]
[346399502,1734940252692,-153.0,0.00019696,2]
[346399504,1734940252701,-153.0,0.00019696,2]
[346399506,1734940252710,-153.0,0.00019696,2]
[346399508,1734940252719,-153.0,0.00019696,2]
[346399510,1734940252728,-153.0,0.00019697,2]
[346399512,1734940252737,-153.0,0.00019697,2]
[346399514,1734940252746,-153.0,0.00019697,2]
[346399516,1734940252756,-153.0,0.00019697,2]
[346399518,1734940252765,-500.0,0.00019699,2]
[346399520,1734940252777,-3343.15,0.00019699,2]
[346399522,1734940252787,-2718.48,0.00019699,2]
[346399524,1734940252796,-2718.48,0.00019699,2]
[346399526,1734940252805,-2718.48,0.00019699,2]
[346399528,1734940252814,-2718.48,0.00019699,2]
[346399530,1734940252823,-935357.3440451,0.000197,2]
[346399532,1734940252833,-168.68853796,0.000197,2]
[346399534,1734940252842,-841.03525344,0.000197,2]
[346399536,1734940252851,-150.0,0.000197,4]
[346399538,1734940252860,-153.0,0.00019703,2]
[346399540,1734940252869,-309.24733089,0.00019713,2]
[346399542,1734940252879,-7398.342031,0.00019717,2]
[346399544,1734940252889,-8509.41724508,0.00019717,2]
[346399546,1734940252899,-1880.0,0.00019717,2]
[346399548,1734940252908,-1000.0,0.00019721,2]
[346399550,1734940252918,-2718.48,0.00019725,2]
[346399552,1734940252927,-2718.48,0.00019725,2]
[346399554,1734940252936,-406.67455889,0.00019726,2]
[346399556,1734940252945,-500.0,0.00019726,2]
[346399558,1734940252954,-500.0,0.00019726,2]
[346399560,1734940252964,-500.0,0.00019726,2]
[346399562,1734940252973,-512.51541631,0.00019726,2]
[346399564,1734940252984,-507.63394964,0.00019726,2]
[346399566,1734940252993,-500.78,0.00019726,2]
[346399568,1734940253003,-500.0,0.00019726,2]
[346399570,1734940253012,-500.0,0.00019726,2]
[346399572,1734940253023,-500.0,0.00019726,2]
[346399574,1734940253032,-500.0,0.00019726,2]
[346399576,1734940253043,-500.0,0.00019726,2]
[346399578,1734940253052,-500.0,0.00019726,2]
[346399580,1734940253061,-500.0,0.00019726,2]
[346399582,1734940253070,-509.89627698,0.00019726,2]
[346399583,1734940253079,-500.0,0.00019726,2]
[346399584,1734940253088,-500.0,0.00019726,2]
[346399585,1734940253097,-500.0,0.00019726,2]
[346399586,1734940253106,-500.0,0.00019726,2]
[346399587,1734940253115,-500.0,0.00019726,2]
[346399588,1734940253124,-526.56063358,0.00019726,2]
[346399589,1734940253132,-500.0,0.00019726,2]
[346399590,1734940253142,-500.0,0.00019726,2]
[346399591,1734940253150,-500.0,0.00019726,2]
[346399592,1734940253159,-500.0,0.00019726,2]
[346399593,1734940253168,-500.0,0.00019726,2]
[346399594,1734940253177,-500.0,0.00019726,2]
[346399595,1734940253185,-1392.75,0.00019726,2]
[346399596,1734940253195,-500.0,0.00019726,2]
[346399598,1734940253204,-2000.0,0.00019726,15]
[346399600,1734940253214,-500.0,0.00019726,2]
[346399602,1734940253224,-513.87724825,0.00019726,2]
[346399604,1734940253234,-627.12236635,0.00019726,2]
[346399606,1734940253244,-1123.15,0.00019726,2]
[346399608,1734940253253,-585.88,0.00019726,2]
[346399610,1734940253262,-500.0,0.00019726,2]
[346399612,1734940253273,-500.0,0.00019726,2]
[346399614,1734940253282,-625.77,0.00019726,2]
[346399616,1734940253291,-500.0,0.00019726,2]
[346399618,1734940253301,-1058.83,0.00019726,2]
[346399620,1734940253311,-500.0,0.00019726,2]
[346399622,1734940253320,-357.23419065,0.00019726,2]
[346399624,1734940253329,-500.0,0.00019726,2]
[346399626,1734940253340,-605.07966303,0.00019726,2]
[346399628,1734940253351,-500.0,0.00019726,2]
[346399630,1734940253360,-500.0,0.00019726,2]
[346399632,1734940253369,-500.0,0.00019726,2]
[346399634,1734940253379,-1255.62,0.00019726,2]
[346399636,1734940253388,-500.0,0.00019726,2]
[346399638,1734940253397,-500.0,0.00019726,2]
[346399640,1734940253406,-500.0,0.00019726,2]
[346399642,1734940253417,-500.0,0.00019726,2]
[346399644,1734940253427,-500.0,0.00019726,2]
[346399646,1734940253436,-500.0,0.00019726,2]
[346399648,1734940253445,-500.0,0.00019726,2]
[346399650,1734940253454,-1239.37,0.00019726,2]
[346399652,1734940253463,-500.0,0.00019726,2]
[346399654,1734940253472,-597.07,0.00019726,2]
[346399656,1734940253482,-500.0,0.00019726,2]
[346399658,1734940253492,-777.32,0.00019726,2]
[346399660,1734940253501,-500.0,0.00019726,2]
[346399662,1734940253510,-500.0,0.00019726,2]
[346399664,1734940253521,-500.0,0.00019726,2]
[346399666,1734940253530,-844.94,0.00019726,2]
[346399668,1734940253539,-500.0,0.00019726,2]
[346399670,1734940253548,-500.0,0.00019726,2]
[346399672,1734940253558,-500.0,0.00019726,2]
[346399674,1734940253569,-500.0,0.00019726,2]
[346399676,1734940253578,-500.0,0.00019726,2]
[346399678,1734940253588,-500.0,0.00019726,2]
[346399680,1734940253597,-622.98,0.00019726,2]
[346399682,1734940253606,-500.0,0.00019726,2]
[346399684,1734940253615,-306.58175874,0.00019726,2]
[346399686,1734940253625,-500.0,0.00019726,2]
[346399688,1734940253634,-500.0,0.00019726,2]
[346399690,1734940253643,-500.0,0.00019726,2]
[346399692,1734940253653,-500.0,0.00019726,2]
[346399694,1734940253663,-635.11,0.00019726,2]
[346399696,1734940253672,-500.0,0.00019726,2]
[346399698,1734940253681,-500.0,0.00019726,2]
[346399700,1734940253690,-500.0,0.00019726,2]
[346399702,1734940253700,-500.0,0.00019726,2]
[346399704,1734940253710,-500.0,0.00019726,2]
[346399706,1734940253720,-500.0,0.00019726,2]
[346399708,1734940253729,-500.0,0.00019726,2]
[346399710,1734940253738,-500.0,0.00019726,2]
[346399711,1734940253747,-500.0,0.00019726,2]
[346399714,1734940253757,-500.0,0.00019726,2]
[346399716,1734940253767,-724.41,0.00019726,2]
[346399718,1734940253777,-447.05942686,0.00019726,2]
[346399720,1734940253786,-821.25,0.00019726,2]
[346399722,1734940253796,-500.0,0.00019726,2]
[346399724,1734940253805,-500.0,0.00019726,2]
[346399726,1734940253815,-500.0,0.00019726,2]
[346399728,1734940253824,-925.04,0.00019726,2]
[346399730,1734940253833,-500.0,0.00019726,2]
[346399731,1734940253842,-500.0,0.00019726,2]
[346399733,1734940253852,-500.0,0.00019726,2]
[346399735,1734940253862,-500.0,0.00019726,2]
[346399737,1734940253871,-500.0,0.00019726,2]
[346399739,1734940253880,-534.88,0.00019726,2]
[346399742,1734940253890,-500.0,0.00019726,2]
[346399744,1734940253899,-800.81,0.00019726,2]
[346399745,1734940253908,-500.0,0.00019726,2]
[346399748,1734940253918,-675.77,0.00019726,2]
[346399749,1734940253927,-775.84,0.00019726,2]
[346399752,1734940253938,-500.0,0.00019726,2]
[346399753,1734940253947,-500.0,0.00019726,2]
[346399756,1734940253957,-500.0,0.00019726,2]
[346399758,1734940253966,-500.0,0.00019726,2]
[346399760,1734940253975,-500.0,0.00019726,2]
[346399762,1734940253986,-500.0,0.00019726,2]
[346399764,1734940253995,-500.0,0.00019726,2]